[Event "Titled Tuesday Blitz July 18 Early 2023"]
[White "Kiseljova, Marya"]
[Black "ArturoCaceres"]
[WhiteFideId "4155009"]
[WhiteElo "2134"]
[BlackElo "2368"]
[Result "0-1"]
[Round "3"]
[TimeControl "180+2"]
[Date "2023.07.18"]
[WhiteClock "0:00:00"]
[BlackClock "0:00:07"]
[Board "202"]

1. d4 {[%clk 0:03:00]}  f6 {[%clk 0:02:58]} 2. e4 {[%clk 0:02:51]}  e6 {[%clk 0:02:53]} 3. Bd3 {[%clk 0:02:30]}  h5 {[%clk 0:02:44]} 4. e5 {[%clk 0:02:24]}  f5 {[%clk 0:02:37]} 5. h4 {[%clk 0:02:21]}  b6 {[%clk 0:02:33]} 6. Qf3 {[%clk 0:02:12]}  Nc6 {[%clk 0:02:26]} 7. c3 {[%clk 0:02:07]}  Bb7 {[%clk 0:02:16]} 8. Qg3 {[%clk 0:01:57]}  Nce7 {[%clk 0:02:11]} 9. Nh3 {[%clk 0:01:53]}  Nh6 {[%clk 0:02:08]} 10. Nf4 {[%clk 0:01:46]}  Nf7 {[%clk 0:02:04]} 11. Ng6 {[%clk 0:01:32]}  Rh7 {[%clk 0:01:34]} 12. Nxf8 {[%clk 0:01:25]}  Kxf8 {[%clk 0:01:32]} 13. Nd2 {[%clk 0:01:20]}  Rc8 {[%clk 0:01:17]} 14. Nf3 {[%clk 0:01:15]}  Kg8 {[%clk 0:00:55]} 15. Ng5 {[%clk 0:01:14]}  Nxg5 {[%clk 0:00:54]} 16. Bxg5 {[%clk 0:01:13]}  Qe8 {[%clk 0:00:55]} 17. Be2 {[%clk 0:00:51]}  Be4 {[%clk 0:00:44]} 18. O-O {[%clk 0:00:46]}  Kf7 {[%clk 0:00:27]} 19. Rac1 {[%clk 0:00:34]}  c5 {[%clk 0:00:25]} 20. Rfe1 {[%clk 0:00:30]}  cxd4 {[%clk 0:00:19]} 21. cxd4 {[%clk 0:00:31]}  Bd5 {[%clk 0:00:13]} 22. b3 {[%clk 0:00:29]}  Nc6 {[%clk 0:00:10]} 23. Ba6 {[%clk 0:00:28]}  Rc7 {[%clk 0:00:10]} 24. Be3 {[%clk 0:00:23]}  g6 {[%clk 0:00:09]} 25. Bd3 {[%clk 0:00:18]}  Qd8 {[%clk 0:00:08]} 26. Rc3 {[%clk 0:00:15]}  Qc8 {[%clk 0:00:09]} 27. Rec1 {[%clk 0:00:15]}  Rg7 {[%clk 0:00:08]} 28. Bh6 {[%clk 0:00:15]}  Rh7 {[%clk 0:00:08]} 29. Bg5 {[%clk 0:00:15]}  a5 {[%clk 0:00:06]} 30. a3 {[%clk 0:00:14]}  Qb7 {[%clk 0:00:05]} 31. Qe3 {[%clk 0:00:14]}  Rc8 {[%clk 0:00:05]} 32. Bb5 {[%clk 0:00:13]}  Na7 {[%clk 0:00:05]} 33. Bd3 {[%clk 0:00:13]}  Rxc3 {[%clk 0:00:05]} 34. Rxc3 {[%clk 0:00:13]}  Bxg2 {[%clk 0:00:05]} 35. Qc1 {[%clk 0:00:12]}  Bc6 {[%clk 0:00:05]} 36. Bf1 {[%clk 0:00:11]}  Nc8 {[%clk 0:00:05]} 37. Be3 {[%clk 0:00:10]}  Ne7 {[%clk 0:00:05]} 38. Be2 {[%clk 0:00:07]}  Nd5 {[%clk 0:00:06]} 39. Rc2 {[%clk 0:00:08]}  Rg7 {[%clk 0:00:07]} 40. Bg5 {[%clk 0:00:05]}  Kg8 {[%clk 0:00:07]} 41. Bf3 {[%clk 0:00:04]}  Kh7 {[%clk 0:00:08]} 42. Bg2 {[%clk 0:00:04]}  Rf7 {[%clk 0:00:08]} 43. Bf4 {[%clk 0:00:04]}  Nxf4 {[%clk 0:00:07]} 44. Qxf4 {[%clk 0:00:04]}  Bxg2 {[%clk 0:00:06]} 45. f3 {[%clk 0:00:04]}  Bxf3 {[%clk 0:00:06]} 46. Rc3 {[%clk 0:00:03]}  Bg4 {[%clk 0:00:07]} 47. Qg5 {[%clk 0:00:00]}  Qe4 {[%clk 0:00:07]} 0-1


[Site "https://www.chess.com"]

[Event "Titled Tuesday Blitz July 18 Early 2023"]
[White "Guevara Sanchez, Erick Marvin"]
[Black "Senft, Sean"]
[WhiteFideId "6700136"]
[BlackFideId "2044960"]
[WhiteElo "2132"]
[BlackElo "2355"]
[Result "0-1"]
[Round "3"]
[TimeControl "180+2"]
[Date "2023.07.18"]
[WhiteClock "0:01:45"]
[BlackClock "0:01:18"]
[Board "204"]

1. e4 {[%clk 0:03:00]}  c5 {[%clk 0:02:58]} 2. Nf3 {[%clk 0:03:00]}  d6 {[%clk 0:02:59]} 3. d4 {[%clk 0:03:00]}  cxd4 {[%clk 0:02:59]} 4. Nxd4 {[%clk 0:03:01]}  Nf6 {[%clk 0:03:00]} 5. Nc3 {[%clk 0:03:01]}  a6 {[%clk 0:03:01]} 6. Bg5 {[%clk 0:03:00]}  e6 {[%clk 0:03:01]} 7. f4 {[%clk 0:02:58]}  Qb6 {[%clk 0:03:02]} 8. Qd2 {[%clk 0:02:48]}  Nc6 {[%clk 0:03:02]} 9. Nxc6 {[%clk 0:02:47]}  bxc6 {[%clk 0:03:02]} 10. Bd3 {[%clk 0:02:42]}  Ng4 {[%clk 0:02:55]} 11. h3 {[%clk 0:02:38]}  Qe3+ {[%clk 0:02:51]} 12. Qxe3 {[%clk 0:02:38]}  Nxe3 {[%clk 0:02:51]} 13. Kf2 {[%clk 0:02:36]}  Nxc2 {[%clk 0:02:24]} 14. Bxc2 {[%clk 0:02:36]}  d5 {[%clk 0:02:25]} 15. exd5 {[%clk 0:02:32]}  Bc5+ {[%clk 0:02:24]} 16. Kg3 {[%clk 0:02:30]}  cxd5 {[%clk 0:02:23]} 17. Rhe1 {[%clk 0:02:30]}  Bb7 {[%clk 0:02:22]} 18. f5 {[%clk 0:02:23]}  Kd7 {[%clk 0:02:21]} 19. Bf4 {[%clk 0:02:19]}  Rhe8 {[%clk 0:02:06]} 20. fxe6+ {[%clk 0:02:18]}  fxe6 {[%clk 0:02:06]} 21. Bxh7 {[%clk 0:02:18]}  Rac8 {[%clk 0:01:58]} 22. Rad1 {[%clk 0:02:17]}  Bb4 {[%clk 0:01:56]} 23. Re3 {[%clk 0:02:14]}  a5 {[%clk 0:01:50]} 24. a3 {[%clk 0:02:01]}  Bc5 {[%clk 0:01:49]} 25. Red3 {[%clk 0:02:00]}  Ba6 {[%clk 0:01:48]} 26. R3d2 {[%clk 0:02:00]}  d4 {[%clk 0:01:40]} 27. Ne4 {[%clk 0:01:58]}  Bb6 {[%clk 0:01:35]} 28. Bg6 {[%clk 0:01:57]}  Rf8 {[%clk 0:01:29]} 29. Be5 {[%clk 0:01:57]}  d3 {[%clk 0:01:25]} 30. Nd6 {[%clk 0:01:49]}  Rc5 {[%clk 0:01:22]} 31. Bd4 {[%clk 0:01:47]}  Rg5+ {[%clk 0:01:21]} 32. Kh4 {[%clk 0:01:46]}  Rxg6 {[%clk 0:01:18]} 33. Bxb6 {[%clk 0:01:45]}  Rh8# {[%clk 0:01:18]} 0-1


[Site "https://www.chess.com"]

[Event "Titled Tuesday Blitz July 18 Early 2023"]
[White "Ishowmoves57"]
[Black "Sovetbekova, Nurai"]
[BlackFideId "13801910"]
[WhiteElo "2122"]
[BlackElo "2349"]
[Result "0-1"]
[Round "3"]
[TimeControl "180+2"]
[Date "2023.07.18"]
[WhiteClock "0:00:02"]
[BlackClock "0:00:29"]
[Board "205"]

1. e4 {[%clk 0:03:00]}  c5 {[%clk 0:02:59]} 2. Nc3 {[%clk 0:02:56]}  Nc6 {[%clk 0:02:59]} 3. f4 {[%clk 0:02:52]}  g6 {[%clk 0:02:58]} 4. Nf3 {[%clk 0:02:51]}  Bg7 {[%clk 0:02:57]} 5. Bc4 {[%clk 0:02:51]}  e6 {[%clk 0:02:56]} 6. f5 {[%clk 0:02:50]}  exf5 {[%clk 0:02:53]} 7. exf5 {[%clk 0:02:46]}  Nge7 {[%clk 0:02:49]} 8. fxg6 {[%clk 0:02:34]}  hxg6 {[%clk 0:02:47]} 9. Ng5 {[%clk 0:02:15]}  d5 {[%clk 0:02:44]} 10. Qf3 {[%clk 0:02:01]}  O-O {[%clk 0:02:10]} 11. Nxd5 {[%clk 0:01:54]}  Nd4 {[%clk 0:01:55]} 12. Nf6+ {[%clk 0:01:11]}  Bxf6 {[%clk 0:01:29]} 13. Qxf6 {[%clk 0:01:12]}  Nd5 {[%clk 0:01:08]} 14. Qxd8 {[%clk 0:00:56]}  Rxd8 {[%clk 0:01:08]} 15. Bd3 {[%clk 0:00:36]}  Nb4 {[%clk 0:01:00]} 16. O-O {[%clk 0:00:26]}  Ndxc2 {[%clk 0:00:54]} 17. Bxc2 {[%clk 0:00:24]}  Nxc2 {[%clk 0:00:54]} 18. Rb1 {[%clk 0:00:25]}  Bf5 {[%clk 0:00:53]} 19. g4 {[%clk 0:00:18]}  Bxg4 {[%clk 0:00:39]} 20. Nxf7 {[%clk 0:00:18]}  Rf8 {[%clk 0:00:33]} 21. Ne5 {[%clk 0:00:17]}  Rxf1+ {[%clk 0:00:31]} 22. Kxf1 {[%clk 0:00:17]}  Rf8+ {[%clk 0:00:32]} 23. Kg1 {[%clk 0:00:02]}  Bh3 {[%clk 0:00:29]} 0-1


[Site "https://www.chess.com"]

[Event "Titled Tuesday Blitz July 18 Early 2023"]
[White "Llanos, Guillermo"]
[Black "campochess"]
[WhiteFideId "100358"]
[WhiteElo "2343"]
[BlackElo "2117"]
[Result "1-0"]
[Round "3"]
[TimeControl "180+2"]
[Date "2023.07.18"]
[WhiteClock "0:01:15"]
[BlackClock "0:01:16"]
[Board "207"]

1. Nf3 {[%clk 0:03:00]}  c5 {[%clk 0:02:55]} 2. g3 {[%clk 0:03:00]}  d5 {[%clk 0:02:53]} 3. Bg2 {[%clk 0:03:01]}  Nc6 {[%clk 0:02:53]} 4. O-O {[%clk 0:03:01]}  g6 {[%clk 0:02:54]} 5. d4 {[%clk 0:03:00]}  cxd4 {[%clk 0:02:52]} 6. Nxd4 {[%clk 0:03:00]}  Bg7 {[%clk 0:02:52]} 7. Nxc6 {[%clk 0:02:59]}  bxc6 {[%clk 0:02:52]} 8. c4 {[%clk 0:03:00]}  Nf6 {[%clk 0:02:52]} 9. cxd5 {[%clk 0:02:59]}  Nxd5 {[%clk 0:02:48]} 10. Qa4 {[%clk 0:02:47]}  Bd7 {[%clk 0:02:45]} 11. Rd1 {[%clk 0:02:40]}  O-O {[%clk 0:02:43]} 12. Qh4 {[%clk 0:02:35]}  e6 {[%clk 0:02:41]} 13. Qxd8 {[%clk 0:02:33]}  Rfxd8 {[%clk 0:02:40]} 14. e4 {[%clk 0:02:22]}  Nb6 {[%clk 0:02:38]} 15. Nc3 {[%clk 0:02:19]}  Be8 {[%clk 0:02:38]} 16. Bg5 {[%clk 0:02:15]}  f6 {[%clk 0:02:37]} 17. Be3 {[%clk 0:02:14]}  e5 {[%clk 0:02:36]} 18. Bf1 {[%clk 0:02:10]}  Bf7 {[%clk 0:02:35]} 19. b3 {[%clk 0:02:09]}  Bf8 {[%clk 0:02:24]} 20. Ba6 {[%clk 0:02:02]}  Be7 {[%clk 0:02:22]} 21. Bb7 {[%clk 0:01:59]}  Rxd1+ {[%clk 0:02:18]} 22. Rxd1 {[%clk 0:01:58]}  Rd8 {[%clk 0:02:18]} 23. Rxd8+ {[%clk 0:01:56]}  Bxd8 {[%clk 0:02:18]} 24. Bxc6 {[%clk 0:01:55]}  Kf8 {[%clk 0:02:18]} 25. Nd5 {[%clk 0:01:52]}  Be6 {[%clk 0:02:07]} 26. Bc5+ {[%clk 0:01:51]}  Kf7 {[%clk 0:02:03]} 27. a4 {[%clk 0:01:47]}  f5 {[%clk 0:01:59]} 28. f3 {[%clk 0:01:42]}  g5 {[%clk 0:01:55]} 29. a5 {[%clk 0:01:40]}  Nc8 {[%clk 0:01:54]} 30. b4 {[%clk 0:01:39]}  g4 {[%clk 0:01:52]} 31. exf5 {[%clk 0:01:33]}  Bxf5 {[%clk 0:01:52]} 32. Ne3 {[%clk 0:01:19]}  Be6 {[%clk 0:01:39]} 33. Nxg4 {[%clk 0:01:19]}  Bxg4 {[%clk 0:01:35]} 34. fxg4 {[%clk 0:01:19]}  Ke6 {[%clk 0:01:35]} 35. Be4 {[%clk 0:01:18]}  h6 {[%clk 0:01:33]} 36. Bf5+ {[%clk 0:01:17]}  Kd5 {[%clk 0:01:28]} 37. Bxc8 {[%clk 0:01:17]}  Bxa5 {[%clk 0:01:28]} 38. bxa5 {[%clk 0:01:17]}  Kxc5 {[%clk 0:01:16]} 39. a6 {[%clk 0:01:15]} 1-0


[Site "https://www.chess.com"]

[Event "Titled Tuesday Blitz July 18 Early 2023"]
[White "Buscar, Michael"]
[Black "Penagalapati, Abhinav"]
[WhiteFideId "2603616"]
[BlackFideId "30938210"]
[WhiteElo "2331"]
[BlackElo "2005"]
[Result "1-0"]
[Round "3"]
[TimeControl "180+2"]
[Date "2023.07.18"]
[WhiteClock "0:00:18"]
[BlackClock "0:00:15"]
[Board "212"]

1. c4 {[%clk 0:03:00]}  c6 {[%clk 0:02:59]} 2. e4 {[%clk 0:02:59]}  d5 {[%clk 0:02:59]} 3. cxd5 {[%clk 0:02:58]}  cxd5 {[%clk 0:03:00]} 4. exd5 {[%clk 0:02:59]}  Nf6 {[%clk 0:03:01]} 5. Nc3 {[%clk 0:02:59]}  Nxd5 {[%clk 0:03:01]} 6. Bc4 {[%clk 0:02:58]}  Nxc3 {[%clk 0:02:55]} 7. bxc3 {[%clk 0:02:52]}  e6 {[%clk 0:02:55]} 8. Nf3 {[%clk 0:02:48]}  Be7 {[%clk 0:02:53]} 9. h4 {[%clk 0:02:44]}  Nc6 {[%clk 0:02:49]} 10. h5 {[%clk 0:02:43]}  h6 {[%clk 0:02:47]} 11. Rh3 {[%clk 0:02:38]}  e5 {[%clk 0:02:38]} 12. Rg3 {[%clk 0:02:35]}  e4 {[%clk 0:01:49]} 13. Rxg7 {[%clk 0:02:29]}  exf3 {[%clk 0:01:49]} 14. Qxf3 {[%clk 0:02:28]}  Ne5 {[%clk 0:01:46]} 15. Qf4 {[%clk 0:02:13]}  Nxc4 {[%clk 0:01:29]} 16. Qxf7+ {[%clk 0:02:10]}  Kd7 {[%clk 0:01:29]} 17. Qxc4 {[%clk 0:02:08]}  Qb6 {[%clk 0:01:06]} 18. Ba3 {[%clk 0:01:44]}  Qe6+ {[%clk 0:00:52]} 19. Qxe6+ {[%clk 0:01:43]}  Kxe6 {[%clk 0:00:53]} 20. Rxe7+ {[%clk 0:01:43]}  Kf6 {[%clk 0:00:52]} 21. f3 {[%clk 0:01:34]}  Bf5 {[%clk 0:00:49]} 22. Rxb7 {[%clk 0:01:24]}  Rae8+ {[%clk 0:00:42]} 23. Kf2 {[%clk 0:01:20]}  Bd3 {[%clk 0:00:39]} 24. Bc5 {[%clk 0:01:09]}  Re2+ {[%clk 0:00:38]} 25. Kg1 {[%clk 0:01:10]}  Rg8 {[%clk 0:00:35]} 26. g4 {[%clk 0:01:02]}  Kg5 {[%clk 0:00:34]} 27. Rf1 {[%clk 0:00:46]}  Kh4 {[%clk 0:00:26]} 28. Rf2 {[%clk 0:00:41]}  Re1+ {[%clk 0:00:19]} 29. Kg2 {[%clk 0:00:42]}  Rxg4+ {[%clk 0:00:15]} 30. fxg4 {[%clk 0:00:38]}  Be4+ {[%clk 0:00:15]} 31. Rf3 {[%clk 0:00:38]}  Bxb7 {[%clk 0:00:15]} 32. Bf2+ {[%clk 0:00:38]}  Kxg4 {[%clk 0:00:15]} 33. Bxe1 {[%clk 0:00:37]}  Bxf3+ {[%clk 0:00:16]} 34. Kf2 {[%clk 0:00:37]}  Bd5 {[%clk 0:00:16]} 35. a4 {[%clk 0:00:34]}  Kxh5 {[%clk 0:00:17]} 36. Ke3 {[%clk 0:00:33]}  Kg6 {[%clk 0:00:17]} 37. Kd4 {[%clk 0:00:34]}  Bf3 {[%clk 0:00:17]} 38. Ke5 {[%clk 0:00:33]}  Kf7 {[%clk 0:00:17]} 39. d4 {[%clk 0:00:33]}  Ke7 {[%clk 0:00:17]} 40. a5 {[%clk 0:00:32]}  Kd7 {[%clk 0:00:18]} 41. c4 {[%clk 0:00:32]}  Kc6 {[%clk 0:00:18]} 42. Bf2 {[%clk 0:00:27]}  h5 {[%clk 0:00:18]} 43. d5+ {[%clk 0:00:26]}  Kd7 {[%clk 0:00:18]} 44. Bxa7 {[%clk 0:00:26]}  Be2 {[%clk 0:00:18]} 45. c5 {[%clk 0:00:24]}  h4 {[%clk 0:00:18]} 46. c6+ {[%clk 0:00:25]}  Kc8 {[%clk 0:00:18]} 47. Bf2 {[%clk 0:00:21]}  h3 {[%clk 0:00:18]} 48. Bg3 {[%clk 0:00:22]}  Bg4 {[%clk 0:00:18]} 49. Kd4 {[%clk 0:00:21]}  Kd8 {[%clk 0:00:18]} 50. Kc5 {[%clk 0:00:20]}  Kc8 {[%clk 0:00:19]} 51. Kb6 {[%clk 0:00:19]}  Bf3 {[%clk 0:00:18]} 52. d6 {[%clk 0:00:18]}  Bg4 {[%clk 0:00:15]} 53. a6 {[%clk 0:00:18]} 1-0


[Site "https://www.chess.com"]

[Event "Titled Tuesday Blitz July 18 Early 2023"]
[White "Okike, David"]
[Black "Lohani, Sujana"]
[WhiteFideId "8500134"]
[BlackFideId "12311987"]
[WhiteElo "2320"]
[BlackElo "1930"]
[Result "1-0"]
[Round "3"]
[TimeControl "180+2"]
[Date "2023.07.18"]
[WhiteClock "0:00:20"]
[BlackClock "0:00:00"]
[Board "214"]

1. e4 {[%clk 0:03:00]}  c5 {[%clk 0:02:59]} 2. Nf3 {[%clk 0:03:00]}  Nc6 {[%clk 0:02:59]} 3. d4 {[%clk 0:03:01]}  cxd4 {[%clk 0:02:59]} 4. Nxd4 {[%clk 0:03:01]}  g6 {[%clk 0:02:59]} 5. Nxc6 {[%clk 0:02:59]}  bxc6 {[%clk 0:02:59]} 6. Qd4 {[%clk 0:02:59]}  Nf6 {[%clk 0:02:58]} 7. e5 {[%clk 0:02:59]}  Nd5 {[%clk 0:02:44]} 8. Bc4 {[%clk 0:02:57]}  e6 {[%clk 0:02:41]} 9. O-O {[%clk 0:02:56]}  Bg7 {[%clk 0:02:39]} 10. Qe4 {[%clk 0:02:56]}  O-O {[%clk 0:02:36]} 11. Nd2 {[%clk 0:02:55]}  Nb6 {[%clk 0:02:24]} 12. Bd3 {[%clk 0:02:52]}  d5 {[%clk 0:02:19]} 13. exd6 {[%clk 0:02:51]}  Qxd6 {[%clk 0:02:18]} 14. Nf3 {[%clk 0:02:49]}  Nd5 {[%clk 0:02:07]} 15. Rb1 {[%clk 0:02:46]}  Rd8 {[%clk 0:02:02]} 16. Bg5 {[%clk 0:02:39]}  Rd7 {[%clk 0:01:54]} 17. a3 {[%clk 0:02:34]}  Bb7 {[%clk 0:01:53]} 18. Rfd1 {[%clk 0:02:28]}  c5 {[%clk 0:01:53]} 19. Qe2 {[%clk 0:02:25]}  Nf4 {[%clk 0:01:46]} 20. Qe3 {[%clk 0:02:14]}  Nd5 {[%clk 0:01:31]} 21. Qe1 {[%clk 0:02:07]}  Qc6 {[%clk 0:01:28]} 22. Be4 {[%clk 0:02:03]}  Qb6 {[%clk 0:01:21]} 23. c4 {[%clk 0:02:00]}  Nf6 {[%clk 0:01:16]} 24. Bxb7 {[%clk 0:01:57]}  Qxb7 {[%clk 0:01:15]} 25. Ne5 {[%clk 0:01:53]}  Rxd1 {[%clk 0:01:02]} 26. Qxd1 {[%clk 0:01:44]}  Ne4 {[%clk 0:00:57]} 27. Bf4 {[%clk 0:01:44]}  g5 {[%clk 0:00:56]} 28. Nxf7 {[%clk 0:00:55]}  Kxf7 {[%clk 0:00:42]} 29. Qh5+ {[%clk 0:00:55]}  Kg8 {[%clk 0:00:40]} 30. Bxg5 {[%clk 0:00:54]}  Nxg5 {[%clk 0:00:38]} 31. Qxg5 {[%clk 0:00:54]}  Qe4 {[%clk 0:00:35]} 32. Qc1 {[%clk 0:00:53]}  Rf8 {[%clk 0:00:34]} 33. f3 {[%clk 0:00:46]}  Bd4+ {[%clk 0:00:31]} 34. Kh1 {[%clk 0:00:46]}  Qf4 {[%clk 0:00:26]} 35. Qxf4 {[%clk 0:00:45]}  Rxf4 {[%clk 0:00:26]} 36. b3 {[%clk 0:00:46]}  e5 {[%clk 0:00:20]} 37. h3 {[%clk 0:00:39]}  a5 {[%clk 0:00:19]} 38. Kh2 {[%clk 0:00:38]}  e4 {[%clk 0:00:19]} 39. Kg3 {[%clk 0:00:36]}  Be5 {[%clk 0:00:14]} 40. Kf2 {[%clk 0:00:36]}  exf3 {[%clk 0:00:14]} 41. gxf3 {[%clk 0:00:34]}  Bd4+ {[%clk 0:00:14]} 42. Kg3 {[%clk 0:00:33]}  Rf6 {[%clk 0:00:03]} 43. f4 {[%clk 0:00:31]}  Kf7 {[%clk 0:00:01]} 44. Re1 {[%clk 0:00:26]}  Rg6+ {[%clk 0:00:02]} 45. Kf3 {[%clk 0:00:26]}  Re6 {[%clk 0:00:02]} 46. Re4 {[%clk 0:00:24]}  Rxe4 {[%clk 0:00:02]} 47. Kxe4 {[%clk 0:00:24]}  Ke6 {[%clk 0:00:02]} 48. f5+ {[%clk 0:00:21]}  Kf6 {[%clk 0:00:02]} 49. Kf4 {[%clk 0:00:22]}  Bb2 {[%clk 0:00:02]} 50. a4 {[%clk 0:00:22]}  Bd4 {[%clk 0:00:02]} 51. Ke4 {[%clk 0:00:22]}  h6 {[%clk 0:00:02]} 52. Kf4 {[%clk 0:00:21]}  Be5+ {[%clk 0:00:00]} 53. Kg4 {[%clk 0:00:20]} 1-0


[Site "https://www.chess.com"]

[Event "Titled Tuesday Blitz July 18 Early 2023"]
[White "Acikel, Mert"]
[Black "Navyblue1"]
[WhiteFideId "12956465"]
[WhiteElo "2311"]
[BlackElo "1874"]
[Result "1-0"]
[Round "3"]
[TimeControl "180+2"]
[Date "2023.07.18"]
[WhiteClock "0:01:18"]
[BlackClock "0:00:00"]
[Board "216"]

1. e4 {[%clk 0:03:00]}  c5 {[%clk 0:02:59]} 2. Nf3 {[%clk 0:03:00]}  d6 {[%clk 0:02:56]} 3. Bb5+ {[%clk 0:03:00]}  Nd7 {[%clk 0:02:53]} 4. Ba4 {[%clk 0:02:59]}  Nf6 {[%clk 0:02:47]} 5. O-O {[%clk 0:02:58]}  e6 {[%clk 0:02:37]} 6. Re1 {[%clk 0:02:57]}  Be7 {[%clk 0:02:31]} 7. c3 {[%clk 0:02:57]}  O-O {[%clk 0:02:17]} 8. d4 {[%clk 0:02:57]}  cxd4 {[%clk 0:01:23]} 9. cxd4 {[%clk 0:02:56]}  e5 {[%clk 0:01:21]} 10. Nc3 {[%clk 0:02:53]}  Nb6 {[%clk 0:00:46]} 11. Bb3 {[%clk 0:02:48]}  Bg4 {[%clk 0:00:43]} 12. h3 {[%clk 0:02:48]}  Bxf3 {[%clk 0:00:41]} 13. Qxf3 {[%clk 0:02:46]}  exd4 {[%clk 0:00:41]} 14. Nb5 {[%clk 0:02:46]}  Nfd7 {[%clk 0:00:32]} 15. Nxd4 {[%clk 0:02:43]}  Ne5 {[%clk 0:00:31]} 16. Qe2 {[%clk 0:02:41]}  Rc8 {[%clk 0:00:23]} 17. Bf4 {[%clk 0:02:37]}  Bg5 {[%clk 0:00:19]} 18. Bxg5 {[%clk 0:02:27]}  Qxg5 {[%clk 0:00:19]} 19. Nf5 {[%clk 0:02:24]}  Rcd8 {[%clk 0:00:16]} 20. Rad1 {[%clk 0:02:22]}  g6 {[%clk 0:00:16]} 21. Nxd6 {[%clk 0:02:18]}  Qf6 {[%clk 0:00:15]} 22. Nb5 {[%clk 0:02:11]}  a6 {[%clk 0:00:13]} 23. Nc7 {[%clk 0:02:09]}  Qe7 {[%clk 0:00:13]} 24. Nd5 {[%clk 0:02:08]}  Qd6 {[%clk 0:00:11]} 25. Qe3 {[%clk 0:02:01]}  Nxd5 {[%clk 0:00:10]} 26. Rxd5 {[%clk 0:01:56]}  Qe7 {[%clk 0:00:07]} 27. Red1 {[%clk 0:01:56]}  Nc6 {[%clk 0:00:06]} 28. Qf4 {[%clk 0:01:51]}  Rxd5 {[%clk 0:00:05]} 29. exd5 {[%clk 0:01:51]}  Na5 {[%clk 0:00:05]} 30. d6 {[%clk 0:01:51]}  Qd7 {[%clk 0:00:05]} 31. Bd5 {[%clk 0:01:28]}  Nc6 {[%clk 0:00:00]} 32. Re1 {[%clk 0:01:18]} 1-0


[Site "https://www.chess.com"]

[Event "Titled Tuesday Blitz July 18 Early 2023"]
[White "Cardozo Munar, Carlos Eduardo"]
[Black "Gyulamiryan-koryun"]
[WhiteFideId "4409477"]
[WhiteElo "2296"]
[BlackElo "1861"]
[Result "1/2-1/2"]
[Round "3"]
[TimeControl "180+2"]
[Date "2023.07.18"]
[WhiteClock "0:00:21"]
[BlackClock "0:00:07"]
[Board "217"]

1. d4 {[%clk 0:02:56]}  Nf6 {[%clk 0:02:59]} 2. Bg5 {[%clk 0:02:53]}  g6 {[%clk 0:02:52]} 3. Bxf6 {[%clk 0:02:53]}  exf6 {[%clk 0:02:52]} 4. g3 {[%clk 0:02:54]}  Bg7 {[%clk 0:02:53]} 5. Bg2 {[%clk 0:02:55]}  O-O {[%clk 0:02:53]} 6. Nf3 {[%clk 0:02:56]}  f5 {[%clk 0:02:53]} 7. O-O {[%clk 0:02:55]}  Nc6 {[%clk 0:02:51]} 8. e3 {[%clk 0:02:55]}  Re8 {[%clk 0:02:50]} 9. c4 {[%clk 0:02:56]}  Ne7 {[%clk 0:02:50]} 10. b4 {[%clk 0:02:54]}  d5 {[%clk 0:02:50]} 11. Nbd2 {[%clk 0:02:54]}  dxc4 {[%clk 0:02:49]} 12. Nxc4 {[%clk 0:02:54]}  c6 {[%clk 0:02:49]} 13. a4 {[%clk 0:02:53]}  Nd5 {[%clk 0:02:48]} 14. b5 {[%clk 0:02:53]}  Bd7 {[%clk 0:02:47]} 15. Nce5 {[%clk 0:02:49]}  cxb5 {[%clk 0:02:33]} 16. Nxd7 {[%clk 0:02:49]}  Qxd7 {[%clk 0:02:32]} 17. axb5 {[%clk 0:02:50]}  Qxb5 {[%clk 0:02:27]} 18. Rb1 {[%clk 0:02:50]}  Qa6 {[%clk 0:02:16]} 19. Qd2 {[%clk 0:02:45]}  Red8 {[%clk 0:02:01]} 20. Ra1 {[%clk 0:02:40]}  Qd6 {[%clk 0:01:57]} 21. Rfb1 {[%clk 0:02:38]}  b6 {[%clk 0:01:54]} 22. Rb5 {[%clk 0:02:31]}  a6 {[%clk 0:01:44]} 23. Rxd5 {[%clk 0:02:26]}  Qxd5 {[%clk 0:01:43]} 24. Ne5 {[%clk 0:02:26]}  Qb5 {[%clk 0:01:35]} 25. Bxa8 {[%clk 0:02:25]}  Bxe5 {[%clk 0:01:30]} 26. Bf3 {[%clk 0:02:19]}  Bf6 {[%clk 0:01:26]} 27. Qc2 {[%clk 0:02:15]}  a5 {[%clk 0:01:04]} 28. Rb1 {[%clk 0:02:12]}  Qa6 {[%clk 0:01:02]} 29. Qc7 {[%clk 0:02:11]}  Kg7 {[%clk 0:00:42]} 30. Rxb6 {[%clk 0:02:08]}  Qc8 {[%clk 0:00:38]} 31. Qxc8 {[%clk 0:02:00]}  Rxc8 {[%clk 0:00:39]} 32. Ra6 {[%clk 0:02:00]}  Bd8 {[%clk 0:00:39]} 33. Kg2 {[%clk 0:01:52]}  Rc2 {[%clk 0:00:38]} 34. Ra7 {[%clk 0:01:50]}  Bc7 {[%clk 0:00:34]} 35. h4 {[%clk 0:01:43]}  h5 {[%clk 0:00:34]} 36. Bd5 {[%clk 0:01:43]}  Rc3 {[%clk 0:00:24]} 37. Bf3 {[%clk 0:01:31]}  f6 {[%clk 0:00:21]} 38. d5 {[%clk 0:01:28]}  Kf8 {[%clk 0:00:20]} 39. Ra6 {[%clk 0:01:26]}  Ke7 {[%clk 0:00:19]} 40. Re6+ {[%clk 0:01:20]}  Kf7 {[%clk 0:00:19]} 41. Bd1 {[%clk 0:01:16]}  Rd3 {[%clk 0:00:19]} 42. Bf3 {[%clk 0:01:09]}  a4 {[%clk 0:00:16]} 43. Rc6 {[%clk 0:01:05]}  Be5 {[%clk 0:00:15]} 44. Ra6 {[%clk 0:01:05]}  a3 {[%clk 0:00:15]} 45. Be2 {[%clk 0:01:03]}  Rb3 {[%clk 0:00:08]} 46. d6 {[%clk 0:00:59]}  Rb2 {[%clk 0:00:07]} 47. Bc4+ {[%clk 0:00:58]}  Ke8 {[%clk 0:00:07]} 48. Be6 {[%clk 0:00:56]}  Rb8 {[%clk 0:00:05]} 49. Rxa3 {[%clk 0:00:34]}  Bxd6 {[%clk 0:00:05]} 50. Ra7 {[%clk 0:00:34]}  Be7 {[%clk 0:00:04]} 51. Kf3 {[%clk 0:00:30]}  Kf8 {[%clk 0:00:05]} 52. Rc7 {[%clk 0:00:27]}  Rd8 {[%clk 0:00:05]} 53. Ke2 {[%clk 0:00:26]}  Rb8 {[%clk 0:00:05]} 54. f3 {[%clk 0:00:22]}  Rd8 {[%clk 0:00:05]} 55. e4 {[%clk 0:00:21]}  fxe4 {[%clk 0:00:05]} 56. fxe4 {[%clk 0:00:22]}  Rb8 {[%clk 0:00:05]} 57. Bd5 {[%clk 0:00:21]}  Rd8 {[%clk 0:00:05]} 58. Kd3 {[%clk 0:00:20]}  Rb8 {[%clk 0:00:05]} 59. Kc4 {[%clk 0:00:20]}  Rb4+ {[%clk 0:00:04]} 60. Kc3 {[%clk 0:00:20]}  Rb8 {[%clk 0:00:05]} 61. Kd3 {[%clk 0:00:18]}  Rd8 {[%clk 0:00:04]} 62. Kc4 {[%clk 0:00:18]}  Rb8 {[%clk 0:00:05]} 63. Be6 {[%clk 0:00:18]}  Rb4+ {[%clk 0:00:05]} 64. Kd5 {[%clk 0:00:19]}  Rb8 {[%clk 0:00:05]} 65. g4 {[%clk 0:00:19]}  hxg4 {[%clk 0:00:04]} 66. Bxg4 {[%clk 0:00:20]}  Rd8+ {[%clk 0:00:05]} 67. Bd7 {[%clk 0:00:18]}  Rb8 {[%clk 0:00:05]} 68. Ke6 {[%clk 0:00:18]}  Rb6+ {[%clk 0:00:05]} 69. Rc6 {[%clk 0:00:19]}  Rxc6+ {[%clk 0:00:05]} 70. Bxc6 {[%clk 0:00:20]}  f5 {[%clk 0:00:05]} 71. exf5 {[%clk 0:00:18]}  gxf5 {[%clk 0:00:04]} 72. h5 {[%clk 0:00:19]}  Bg5 {[%clk 0:00:05]} 73. Kxf5 {[%clk 0:00:19]}  Bh6 {[%clk 0:00:05]} 74. Kg6 {[%clk 0:00:20]}  Bd2 {[%clk 0:00:05]} 75. Bd5 {[%clk 0:00:19]}  Bc1 {[%clk 0:00:05]} 76. Be6 {[%clk 0:00:20]}  Bd2 {[%clk 0:00:06]} 77. Bb3 {[%clk 0:00:21]}  Bc1 {[%clk 0:00:06]} 78. h6 {[%clk 0:00:21]}  Bxh6 {[%clk 0:00:07]} 1/2-1/2


[Site "https://www.chess.com"]